fUSD/lending_fUSD_20240428
["ID","MTS","AMOUNT","RATE_DAILY","PERIOD"]
[28256,1714330285523,-150.0,0.0001178,2]
[28257,1714330285532,-500.0,0.0001178,2]
[28258,1714330285541,-500.0,0.0001178,2]
[28259,1714330285551,-500.0,0.0001178,2]
[28260,1714330285561,-500.0,0.0001178,2]
[28261,1714330285570,-500.0,0.0001178,2]
[28263,1714330285590,-500.0,0.0001178,2]
[28264,1714330285600,-2953.08,0.0001178,2]
[28265,1714330285609,-500.0,0.0001178,2]
[28267,1714330285628,-660.94,0.0001178,2]
[28268,1714330285638,-500.0,0.0001178,2]
[28269,1714330285647,-932.64,0.0001178,2]
[28270,1714330285657,-500.0,0.0001178,2]
[28271,1714330285667,-11427.79,0.0001178,2]
[28272,1714330285677,-500.0,0.0001178,2]
[28273,1714330285686,-1217.61,0.0001178,2]
[28274,1714330285696,-2573.34,0.0001178,2]
[28275,1714330285705,-620.52,0.0001178,2]
[28277,1714330285725,-500.0,0.0001178,2]
[28278,1714330285734,-500.0,0.0001178,2]
[28279,1714330285744,-1835.25,0.0001178,2]
[28280,1714330285753,-1632.26,0.0001178,2]
[28281,1714330285764,-4086.19,0.0001178,2]
[28282,1714330285775,-771.96,0.0001178,2]
[28283,1714330285785,-717.59,0.0001178,2]
[28284,1714330285795,-500.0,0.0001178,2]
[28285,1714330285805,-1187.88,0.0001178,2]
[28286,1714330285815,-1340.05,0.0001178,2]
[28287,1714330285825,-500.0,0.0001178,2]
[28288,1714330285836,-500.0,0.0001178,2]
[28289,1714330285846,-789.62,0.0001178,2]
[28290,1714330285856,-500.0,0.0001178,2]
[28291,1714330285866,-500.0,0.0001178,2]
[28293,1714330285885,-500.0,0.0001178,2]
[28295,1714330285905,-1161.93,0.0001178,2]
[28297,1714330285924,-2677.29,0.0001178,2]
[28299,1714330285944,-1904.1,0.0001178,2]
[28300,1714330285953,-699.87,0.0001178,2]
[28301,1714330285963,-500.0,0.0001178,2]
[28302,1714330285972,-500.0,0.0001178,2]
[28303,1714330285981,-741.52,0.0001178,2]
[28304,1714330285991,-500.0,0.0001178,2]
[28305,1714330286000,-1097.59,0.0001178,2]
[28306,1714330286012,-512.45,0.0001178,2]
[28307,1714330286024,-756.71,0.0001178,2]
[28308,1714330286033,-551.74,0.0001178,2]
[28309,1714330286043,-2854.57,0.0001178,2]
[28310,1714330286052,-1268.89,0.0001178,2]
[28311,1714330286062,-500.0,0.0001178,2]
[28312,1714330286072,-895.36,0.0001178,2]
[28313,1714330286082,-500.0,0.0001178,2]
[28314,1714330286093,-1322.88,0.0001178,2]
[28315,1714330286103,-500.0,0.0001178,2]
[28316,1714330286112,-958.48,0.0001178,2]
[28317,1714330286122,-500.0,0.0001178,2]
[28318,1714330286131,-2082.17,0.0001178,2]
[28319,1714330286141,-3573.43,0.0001178,2]
[28320,1714330286151,-16792.48,0.0001178,2]
[28321,1714330286160,-620.34,0.0001178,2]
[28322,1714330286170,-704.01,0.0001178,2]
[28323,1714330286180,-500.0,0.0001178,2]
[28324,1714330286189,-1111.15,0.0001178,2]
[28325,1714330286199,-513.62,0.0001178,2]
[28326,1714330286208,-1109.42,0.0001178,2]
[28327,1714330286218,-500.0,0.0001178,2]
[28328,1714330286227,-35832.29600437,0.00011899,2]
[28329,1714330286236,-496.38557403,0.00011953,2]
[28330,1714330286245,-1250.0,0.00011966,2]
[28331,1714330286256,-5000.0,0.00012,2]
[28332,1714330286265,-15013.42843875,0.00012,2]
[28333,1714330286275,-4511.59006098,0.00012,2]
[28334,1714330286284,-594.4,0.00012053,2]
[28335,1714330286295,-594.4,0.00012053,2]
[28336,1714330286304,-594.4,0.00012053,2]
[28337,1714330286314,-594.4,0.00012053,2]
[28338,1714330286324,-594.4,0.00012053,2]
[28339,1714330286333,-594.55,0.00012053,2]
[28340,1714330286343,-14643.65,0.00012054,2]
[28341,1714330286353,-520.26264804,0.00012054,2]
[28342,1714330286363,-499.02181998,0.00012054,2]
[28343,1714330286372,-549.96075678,0.00012054,2]
[28344,1714330286381,-500.0,0.00012054,2]
[28345,1714330286391,-500.0,0.00012054,2]
[28346,1714330286401,-500.0,0.00012054,2]
[28347,1714330286410,-500.0,0.00012054,2]
[28348,1714330286420,-500.0,0.00012054,2]
[28349,1714330286429,-651.26,0.00012054,2]
[28350,1714330286440,-503.32429532,0.00012054,2]
[28351,1714330286449,-500.0,0.00012054,2]
[28353,1714330286469,-500.0,0.00012054,2]
[28354,1714330286479,-507.17,0.00012054,2]
[28355,1714330286488,-537.29,0.00012054,2]
[28356,1714330286498,-500.0,0.00012054,2]
[28357,1714330286509,-523.16,0.00012054,2]
[28358,1714330286520,-500.0,0.00012054,2]
[28359,1714330286530,-500.0,0.00012054,2]
[28360,1714330286540,-500.0,0.00012054,2]
[28361,1714330286550,-502.33504129,0.00012054,2]
[28362,1714330286559,-265.96304563,0.00012054,2]
[28363,1714330286570,-500.0,0.00012054,2]
[28364,1714330286579,-500.0,0.00012054,2]
[28365,1714330286588,-500.0,0.00012054,2]
[28366,1714330286597,-500.0,0.00012054,2]
[28367,1714330286607,-500.0,0.00012054,2]
[28368,1714330286616,-500.0,0.00012054,2]
[28369,1714330286625,-628.31,0.00012054,2]
[28370,1714330286635,-500.0,0.00012054,2]
[28371,1714330286645,-511.57,0.00012054,2]
[28372,1714330286656,-500.0,0.00012054,2]
[28373,1714330286666,-500.0,0.00012054,2]
[28374,1714330286676,-500.0,0.00012054,2]
[28375,1714330286685,-500.0,0.00012054,2]
[28376,1714330286695,-500.0,0.00012054,2]
[28377,1714330286705,-500.0,0.00012054,2]
[28378,1714330286715,-500.0,0.00012054,2]
[28379,1714330286725,-500.0,0.00012054,2]
[28380,1714330286734,-500.0,0.00012054,2]
[28381,1714330286744,-500.0,0.00012054,2]
[28382,1714330286753,-198.41499566,0.00012054,2]
[28383,1714330286764,-500.0,0.00012054,2]
[28384,1714330286774,-634.32,0.00012054,2]
[28385,1714330286784,-500.0,0.00012054,2]
[28386,1714330286794,-500.0,0.00012054,2]
[28387,1714330286804,-500.0,0.00012054,2]
[28388,1714330286813,-500.0,0.00012054,2]
[28389,1714330286823,-500.0,0.00012054,2]
[28390,1714330286833,-500.0,0.00012054,2]
[28391,1714330286843,-500.0,0.00012054,2]
[28392,1714330286854,-162.15807852,0.00012054,2]
[28393,1714330286864,-500.0,0.00012054,2]
[28394,1714330286874,-500.0,0.00012054,2]
[28395,1714330286884,-500.0,0.00012054,2]
[28396,1714330286894,-580.65556959,0.00012054,2]
[28397,1714330286904,-500.0,0.00012054,2]
[28399,1714330286923,-500.0,0.00012054,2]
[28400,1714330286933,-500.0,0.00012054,2]
[28401,1714330286943,-500.0,0.00012054,2]
[28402,1714330286952,-500.0,0.00012054,2]
[28403,1714330286962,-500.0,0.00012054,2]
[28404,1714330286972,-803.34,0.00012054,2]
[28405,1714330286981,-500.0,0.00012054,2]
[28406,1714330286991,-500.0,0.00012054,2]
[28407,1714330287000,-500.0,0.00012054,2]
[28408,1714330287011,-500.0,0.00012054,2]
[28409,1714330287025,-500.0,0.00012054,2]
[28410,1714330287034,-500.0,0.00012054,2]
[28411,1714330287043,-500.0,0.00012054,2]
[28412,1714330287052,-500.0,0.00012054,2]
[28413,1714330287063,-500.0,0.00012054,2]
[28414,1714330287072,-500.0,0.00012054,2]
[28415,1714330287082,-500.0,0.00012054,2]
[28416,1714330287091,-500.0,0.00012054,2]
[28417,1714330287103,-500.0,0.00012054,2]
[28418,1714330287113,-500.0,0.00012054,2]
[28419,1714330287123,-500.0,0.00012054,2]
[28420,1714330287132,-500.0,0.00012054,2]
[28421,1714330287141,-500.0,0.00012054,2]
[28422,1714330287151,-500.0,0.00012054,2]
[28423,1714330287160,-500.0,0.00012054,2]
[28424,1714330287169,-500.0,0.00012054,2]
[28425,1714330287178,-500.0,0.00012054,2]
[28426,1714330287187,-500.0,0.00012054,2]
[28427,1714330287196,-500.0,0.00012054,2]
[28428,1714330287205,-500.0,0.00012054,2]
[28429,1714330287214,-227.07159215,0.00012054,2]
[28430,1714330287223,-500.0,0.00012054,2]
[28431,1714330287233,-500.0,0.00012054,2]
[28432,1714330287243,-579.42,0.00012054,2]
[28433,1714330287252,-500.0,0.00012054,2]
[28434,1714330287264,-574.73,0.00012054,2]
[28435,1714330287273,-500.0,0.00012054,2]
[28436,1714330287283,-500.0,0.00012054,2]
[28437,1714330287293,-500.0,0.00012054,2]
[28438,1714330287303,-500.0,0.00012054,2]
[28439,1714330287312,-500.0,0.00012054,2]
[28440,1714330287323,-500.0,0.00012054,2]
[28441,1714330287332,-500.0,0.00012054,2]
[28443,1714330287352,-500.0,0.00012054,2]
[28444,1714330287363,-500.0,0.00012054,2]
[28445,1714330287373,-710.83,0.00012054,2]
[28446,1714330287383,-500.0,0.00012054,2]
[28447,1714330287394,-670.97,0.00012054,2]
[28448,1714330287404,-574.14,0.00012054,2]
[28449,1714330287413,-500.0,0.00012054,2]
[28450,1714330287423,-500.0,0.00012054,2]
[28451,1714330287433,-500.0,0.00012054,2]
[28452,1714330287442,-500.0,0.00012054,2]
[28453,1714330287452,-500.0,0.00012054,2]
[28454,1714330287462,-1153.97,0.00012054,2]
[28455,1714330287471,-491.73552868,0.00012054,2]
[28456,1714330287481,-559.25,0.00012054,2]
[28457,1714330287490,-743.81,0.00012054,2]
[28458,1714330287500,-500.0,0.00012054,2]
[28459,1714330287513,-843.61,0.00012054,2]
[28460,1714330287522,-500.0,0.00012054,2]
[28461,1714330287532,-516.06,0.00012054,2]
[28462,1714330287542,-691.7,0.00012054,2]
[28463,1714330287551,-500.0,0.00012054,2]
[28464,1714330287562,-783.07,0.00012054,2]
[28465,1714330287572,-500.0,0.00012054,2]
[28466,1714330287582,-500.0,0.00012054,2]
[28467,1714330287591,-1000.0,0.00012054,2]
[28468,1714330287600,-671.61,0.00012054,2]
[28469,1714330287610,-687.24,0.00012054,2]
[28470,1714330287619,-500.0,0.00012054,2]
[28471,1714330287628,-500.0,0.00012054,2]
[28472,1714330287639,-777.19,0.00012054,2]
[28473,1714330287649,-827.3,0.00012054,2]
[28474,1714330287658,-514.76,0.00012054,2]
[28475,1714330287667,-1034.79,0.00012054,2]
[28477,1714330287686,-500.0,0.00012054,2]
[28478,1714330287696,-648.34,0.00012054,2]
[28479,1714330287705,-500.0,0.00012054,2]
[28480,1714330287715,-500.0,0.00012054,2]
[28481,1714330287724,-500.0,0.00012054,2]
[28482,1714330287807,-500.0,0.00012054,2]
[28483,1714330287817,-500.0,0.00012054,2]
[28484,1714330287826,-680.4,0.00012054,2]
[28485,1714330287835,-500.0,0.00012054,2]
[28486,1714330287844,-500.0,0.00012054,2]
[28487,1714330287853,-500.0,0.00012054,2]
[28488,1714330287863,-500.0,0.00012054,2]
[28489,1714330287872,-500.0,0.00012054,2]
[28491,1714330287891,-639.49,0.00012054,2]
[28492,1714330287903,-605.8,0.00012054,2]
[28493,1714330287912,-1173.43,0.00012054,2]
[28495,1714330287930,-500.0,0.00012054,2]
[28496,1714330287939,-500.0,0.00012054,2]
[28497,1714330287948,-574.83,0.00012054,2]
[28498,1714330287958,-675.25,0.00012054,2]
[28499,1714330287967,-669.91,0.00012054,2]
[28500,1714330287976,-500.0,0.00012054,2]
[28501,1714330287985,-1056.57,0.00012054,2]
[28502,1714330287994,-543.49,0.00012054,2]
[28503,1714330288003,-500.0,0.00012054,2]
[28504,1714330288018,-500.0,0.00012054,2]
[28505,1714330288027,-506.77,0.00012054,2]
[28506,1714330288037,-585.71,0.00012054,2]
[28507,1714330288046,-1209.36,0.00012054,2]
[28508,1714330288056,-849.85,0.00012054,2]
[28509,1714330288067,-500.0,0.00012054,2]
[28511,1714330288086,-816.19,0.00012054,2]
[28513,1714330288106,-752.62,0.00012054,2]
[28515,1714330288125,-544.53,0.00012054,2]
[28517,1714330288143,-500.0,0.00012054,2]
[28519,1714330288161,-500.0,0.00012054,2]
[28521,1714330288178,-500.0,0.00012054,2]
[28523,1714330288196,-500.0,0.00012054,2]
[28525,1714330288213,-500.0,0.00012054,2]
[28527,1714330288231,-505.14,0.00012054,2]
[28528,1714330288240,-500.0,0.00012054,2]
[28529,1714330288250,-500.0,0.00012054,2]
[28530,1714330288260,-544.68,0.00012054,2]
[28531,1714330288269,-769.66,0.00012054,2]
[28533,1714330288288,-500.0,0.00012054,2]
[28535,1714330288307,-500.0,0.00012054,2]
[28537,1714330288326,-500.0,0.00012054,2]
[28539,1714330288344,-500.0,0.00012054,2]
[28541,1714330288362,-733.62,0.00012054,2]
[28543,1714330288380,-612.16,0.00012054,2]
[28545,1714330288398,-538.47,0.00012054,2]
[28546,1714330288407,-500.0,0.00012054,2]
[28547,1714330288417,-676.85,0.00012054,2]
[28549,1714330288436,-524.61,0.00012054,2]
[28551,1714330288453,-500.0,0.00012054,2]
[28553,1714330288471,-500.0,0.00012054,2]
[28555,1714330288489,-500.0,0.00012054,2]
[28557,1714330288510,-500.0,0.00012054,2]
[28559,1714330288529,-500.0,0.00012054,2]
[28561,1714330288547,-1154.45,0.00012054,2]
[28563,1714330288565,-230.66877869,0.00012054,2]
[28565,1714330288583,-500.0,0.00012054,2]
[28567,1714330288602,-826.94,0.00012054,2]
[28569,1714330288620,-576.86,0.00012054,2]
[28571,1714330288638,-603.04,0.00012054,2]
[28573,1714330288657,-500.0,0.00012054,2]
[28575,1714330288676,-619.83,0.00012054,2]
[28576,1714330288685,-668.47,0.00012054,2]
[28577,1714330288694,-500.0,0.00012054,2]
[28579,1714330288713,-605.87,0.00012054,2]
[28581,1714330288731,-623.06,0.00012054,2]
[28583,1714330288750,-688.29,0.00012054,2]
[28584,1714330288760,-604.82,0.00012054,2]
[28585,1714330288769,-772.02,0.00012054,2]
[28586,1714330288779,-500.0,0.00012054,2]
[28587,1714330288788,-500.0,0.00012054,2]
[28589,1714330288806,-504.8347063,0.00012054,2]
[28590,1714330288815,-500.0,0.00012054,2]
[28591,1714330288824,-500.0,0.00012054,2]
[28592,1714330288833,-687.45,0.00012054,2]
[28593,1714330288842,-500.0,0.00012054,2]
[28594,1714330288851,-1218.19,0.00012054,2]
[28595,1714330288859,-550.18,0.00012054,2]
[28596,1714330288868,-500.0,0.00012054,2]
[28597,1714330288878,-500.0,0.00012054,2]
[28598,1714330288887,-500.0,0.00012054,2]
[28599,1714330288896,-690.83,0.00012054,2]
[28600,1714330288906,-500.0,0.00012054,2]
[28601,1714330288914,-720.48,0.00012054,2]
[28602,1714330288924,-653.71,0.00012054,2]
[28603,1714330288933,-500.0,0.00012054,2]
[28605,1714330288951,-500.0,0.00012054,2]
[28606,1714330288960,-500.0,0.00012054,2]
[28607,1714330288969,-500.0,0.00012054,2]
[28608,1714330288979,-500.0,0.00012054,2]
[28609,1714330288987,-500.0,0.00012054,2]
[28610,1714330288997,-500.0,0.00012054,2]
[28611,1714330289006,-665.55,0.00012054,2]
[28612,1714330289018,-500.0,0.00012054,2]
[28613,1714330289029,-786.95,0.00012054,2]
[28614,1714330289038,-500.0,0.00012054,2]
[28615,1714330289048,-500.0,0.00012054,2]
[28616,1714330289057,-1257.71,0.00012054,2]
[28617,1714330289067,-500.0,0.00012054,2]
[28618,1714330289076,-686.89,0.00012054,2]
[28619,1714330289086,-500.0,0.00012054,2]
[28621,1714330289105,-500.0,0.00012054,2]
[28622,1714330289116,-500.0,0.00012054,2]
[28623,1714330289125,-500.0,0.00012054,2]
[28624,1714330289133,-500.0,0.00012054,2]
[28625,1714330289142,-500.0,0.00012054,2]
[28626,1714330289152,-314.41212725,0.00012054,2]
[28627,1714330289161,-500.0,0.00012054,2]
[28629,1714330289179,-500.0,0.00012054,2]
[28631,1714330289197,-534.16,0.00012054,2]
[28632,1714330289206,-611.54,0.00012054,2]
[28633,1714330289216,-912.18,0.00012054,2]
[28635,1714330289235,-500.0,0.00012054,2]
[28637,1714330289254,-610.19,0.00012054,2]
[28639,1714330289274,-848.09,0.00012054,2]
[28641,1714330289292,-500.0,0.00012054,2]
[28643,1714330289311,-529.18,0.00012054,2]
[28645,1714330289330,-500.0,0.00012054,2]
[28647,1714330289349,-791.19,0.00012054,2]
[28648,1714330289358,-500.0,0.00012054,2]
[28649,1714330289367,-500.0,0.00012054,2]
[28650,1714330289377,-500.0,0.00012054,2]
[28651,1714330289386,-500.0,0.00012054,2]
[28652,1714330289395,-296.05741748,0.00012054,2]
[28653,1714330289404,-500.0,0.00012054,2]
[28654,1714330289413,-500.0,0.00012054,2]
[28655,1714330289422,-839.0,0.00012054,2]
[28656,1714330289431,-852.02,0.00012054,2]
[28657,1714330289441,-500.0,0.00012054,2]
[28658,1714330289450,-609.16,0.00012054,2]
[28659,1714330289459,-500.0,0.00012054,2]
[28660,1714330289468,-500.0,0.00012054,2]
[28661,1714330289478,-500.0,0.00012054,2]
[28662,1714330289487,-541.84,0.00012054,2]
[28663,1714330289496,-500.0,0.00012054,2]
[28664,1714330289505,-538.91,0.00012054,2]
[28665,1714330289517,-500.0,0.00012054,2]
[28666,1714330289525,-1399.48,0.00012054,2]
[28667,1714330289534,-512.92,0.00012054,2]
[28668,1714330289544,-500.0,0.00012054,2]
[28669,1714330289553,-503.38,0.00012054,2]
[28670,1714330289562,-676.03,0.00012054,2]
[28671,1714330289571,-596.23,0.00012054,2]
[28672,1714330289580,-500.0,0.00012054,2]
[28673,1714330289590,-500.0,0.00012054,2]
[28674,1714330289598,-1253.88,0.00012054,2]
[28675,1714330289607,-500.0,0.00012054,2]
[28676,1714330289616,-500.0,0.00012054,2]
[28677,1714330289626,-500.0,0.00012054,2]
[28678,1714330289635,-500.0,0.00012054,2]
[28679,1714330289644,-500.0,0.00012054,2]
[28680,1714330289654,-500.0,0.00012054,2]
[28681,1714330289664,-500.0,0.00012054,2]
[28683,1714330289683,-500.0,0.00012054,2]
[28684,1714330289693,-735.32,0.00012054,2]
[28685,1714330289703,-1485.82,0.00012054,2]
[28686,1714330289712,-500.0,0.00012054,2]
[28687,1714330289722,-681.29,0.00012054,2]
[28688,1714330289731,-500.0,0.00012054,2]
[28689,1714330289740,-770.56,0.00012054,2]
[28690,1714330289749,-500.0,0.00012054,2]
[28691,1714330289758,-500.0,0.00012054,2]
[28692,1714330289768,-500.0,0.00012054,2]
[28693,1714330289777,-894.51,0.00012054,2]
[28695,1714330289796,-500.0,0.00012054,2]
[28697,1714330289815,-500.0,0.00012054,2]
[28699,1714330289834,-500.0,0.00012054,2]
[28701,1714330289858,-500.0,0.00012054,2]
[28703,1714330289877,-504.69785914,0.00012054,2]
[28705,1714330289896,-1772.81,0.00012054,2]
[28707,1714330289915,-500.0,0.00012054,2]
[28709,1714330289933,-505.97,0.00012054,2]
[28710,1714330289942,-300.46132484,0.00012054,2]
[28711,1714330289951,-500.0,0.00012054,2]
[28713,1714330289969,-500.0,0.00012054,2]
[28714,1714330289979,-500.0,0.00012054,2]
[28715,1714330289988,-531.75,0.00012054,2]
[28717,1714330290007,-514.87,0.00012054,2]
[28719,1714330290029,-500.0,0.00012054,2]
[28721,1714330290048,-668.62,0.00012054,2]
[28723,1714330290068,-1310.84,0.00012054,2]
[28725,1714330290086,-515.16,0.00012054,2]
[28727,1714330290106,-500.0,0.00012054,2]
[28729,1714330290125,-542.33,0.00012054,2]
[28731,1714330290144,-531.2,0.00012054,2]
[28733,1714330290163,-635.02,0.00012054,2]
[28734,1714330290172,-500.0,0.00012054,2]
[28735,1714330290181,-538.67,0.00012054,2]
[28736,1714330290190,-500.0,0.00012054,2]
[28737,1714330290199,-500.0,0.00012054,2]
[28739,1714330290217,-500.0,0.00012054,2]
[28741,1714330290236,-500.0,0.00012054,2]
[28742,1714330290245,-562.77,0.00012054,2]
[28743,1714330290254,-500.0,0.00012054,2]
[28745,1714330290273,-500.0,0.00012054,2]
[28746,1714330290283,-500.0,0.00012054,2]
[28747,1714330290292,-500.0,0.00012054,2]
[28748,1714330290301,-500.0,0.00012054,2]
[28749,1714330290310,-984.05,0.00012054,2]
[28750,1714330290319,-1766.46,0.00012054,2]
[28751,1714330290329,-500.0,0.00012054,2]
[28753,1714330290347,-843.09,0.00012054,2]
[28755,1714330290367,-787.21,0.00012054,2]
[28757,1714330290386,-500.0,0.00012054,2]
[28758,1714330290395,-500.0,0.00012054,2]
[28759,1714330290404,-426.28750179,0.00012054,2]
[28761,1714330290422,-1542.28,0.00012054,2]
[28762,1714330290432,-500.0,0.00012054,2]
[28763,1714330290441,-500.0,0.00012054,2]
[28764,1714330290452,-662.14,0.00012054,2]
[28765,1714330290462,-500.0,0.00012054,2]
[28766,1714330290472,-500.0,0.00012054,2]
[28767,1714330290482,-500.0,0.00012054,2]
[28768,1714330290492,-3550.13,0.00012054,2]
[28769,1714330290502,-500.0,0.00012054,2]
[28770,1714330290512,-910.91,0.00012054,2]
[28771,1714330290522,-1706.94,0.00012054,2]
[28772,1714330290531,-500.0,0.00012054,2]
[28773,1714330290540,-529.51,0.00012054,2]
[28774,1714330290549,-577.6,0.00012054,2]
[28775,1714330290559,-500.0,0.00012054,2]
[28776,1714330290568,-500.0,0.00012054,2]
[28777,1714330290577,-682.07,0.00012054,2]
[28779,1714330290595,-1140.53,0.00012054,2]
[28781,1714330290614,-500.0,0.00012054,2]
[28783,1714330290632,-695.53,0.00012054,2]
[28785,1714330290651,-500.0,0.00012054,2]
[28787,1714330290670,-500.0,0.00012054,2]
[28789,1714330290688,-500.0,0.00012054,2]
[28790,1714330290697,-842.64,0.00012054,2]
[28791,1714330290706,-500.0,0.00012054,2]
[28793,1714330290724,-562.1,0.00012054,2]
[28794,1714330290734,-630.39,0.00012054,2]
[28795,1714330290744,-722.65,0.00012054,2]
[28796,1714330290754,-500.0,0.00012054,2]
[28797,1714330290765,-620.96,0.00012054,2]
[28798,1714330290774,-500.0,0.00012054,2]
[28799,1714330290784,-500.0,0.00012054,2]
[28801,1714330290804,-500.0,0.00012054,2]
[28803,1714330290823,-1785.32,0.00012054,2]
[28805,1714330290843,-500.0,0.00012054,2]
[28807,1714330290861,-500.0,0.00012054,2]
[28809,1714330290880,-500.0,0.00012054,2]
[28811,1714330290899,-500.0,0.00012054,2]
[28812,1714330290908,-1782.61,0.00012054,2]
[28813,1714330290918,-704.62,0.00012054,2]
[28814,1714330290927,-500.0,0.00012054,2]
[28815,1714330290936,-500.0,0.00012054,2]
[28817,1714330290955,-1022.85,0.00012054,2]
[28818,1714330290964,-1638.46,0.00012054,2]
[28819,1714330290973,-500.0,0.00012054,2]
[28820,1714330290983,-806.78,0.00012054,2]
[28821,1714330290993,-1933.98,0.00012054,2]
[28823,1714330291012,-994.43,0.00012054,2]
[28824,1714330291025,-500.0,0.00012054,2]
[28825,1714330291035,-500.0,0.00012054,2]
[28827,1714330291053,-500.0,0.00012054,2]
[28829,1714330291072,-561.77030712,0.00012054,2]
[28831,1714330291090,-8503.81,0.00012054,2]
[28832,1714330291100,-5491.73,0.00012054,2]
[28833,1714330291110,-774.85,0.00012054,2]
[28834,1714330291119,-967.86,0.00012054,2]
[28835,1714330291129,-500.0,0.00012054,2]
[28837,1714330291147,-683.75,0.00012054,2]
[28838,1714330291156,-1027.12,0.00012054,2]
[28839,1714330291165,-500.0,0.00012054,2]
[28841,1714330291183,-622.31,0.00012054,2]
[28843,1714330291201,-6456.44,0.00012054,2]
[28844,1714330291210,-500.0,0.00012054,2]
[28845,1714330291220,-500.0,0.00012054,2]
[28847,1714330291238,-997.5,0.00012054,2]
[28849,1714330291257,-1198.26,0.00012054,2]
[28851,1714330291277,-500.0,0.00012054,2]
[28852,1714330291286,-931.84,0.00012054,2]
[28853,1714330291295,-660.46,0.00012054,2]
[28854,1714330291304,-1293.62,0.00012054,2]
[28855,1714330291313,-500.0,0.00012054,2]
[28856,1714330291323,-542.43,0.00012054,2]
[28857,1714330291332,-870.45,0.00012054,2]
[28858,1714330291341,-612.11,0.00012054,2]
[28859,1714330291350,-500.0,0.00012054,2]
[28860,1714330291359,-23675.76,0.00012054,2]
[28861,1714330291368,-591.63,0.00012054,2]
[28862,1714330291378,-500.0,0.00012054,2]
[28863,1714330291388,-965.63,0.00012054,2]